bitfinex-derivatives/quotes_BTCF0:USTF0_20230102
["timestamp","ask_amount","ask_price","bid_price","bid_amount"]
[1672693895857,0.18739798,16740.0,16739.0,3.94848883]
[1672693896069,0.18739798,16740.0,16739.0,4.24918883]
[1672693900588,0.18739798,16740.0,16739.0,3.94848883]
[1672693900900,0.18739798,16740.0,16739.0,4.24918883]
[1672693902157,0.18739798,16740.0,16739.0,3.94848883]
[1672693908050,0.18739798,16740.0,16739.0,4.24918883]
[1672693909206,0.18739798,16740.0,16739.0,0.17848883]
[1672693917395,0.99547462,16739.0,16738.0,4.3747]
[1672693918344,0.2,16739.0,16738.0,4.3747]
[1672693918555,0.203,16739.0,16738.0,0.4095]
[1672693918972,0.203,16739.0,16738.0,0.6095]
[1672693919504,0.203,16739.0,16738.0,4.3795]
[1672693920344,0.203,16739.0,16738.0,0.6095]
[1672693920971,0.203,16739.0,16738.0,4.3795]
[1672693921607,0.003,16739.0,16738.0,4.3795]
[1672693921827,0.1067,16739.0,16738.0,4.3801]
[1672693927289,0.1077,16739.0,16738.0,4.2757]
[1672693943461,0.1077,16739.0,16738.0,3.975]
[1672693943672,0.1077,16739.0,16738.0,4.2757]
[1672693952618,0.1077,16739.0,16738.0,3.975]
[1672693952829,0.1077,16739.0,16738.0,4.2757]
[1672693953040,0.1077,16739.0,16738.0,3.975]
[1672693953244,0.1077,16739.0,16738.0,4.2757]
[1672693953452,0.1077,16739.0,16738.0,3.975]
[1672693953663,0.1077,16739.0,16738.0,4.2757]
[1672693954084,0.1077,16739.0,16738.0,3.975]
[1672693954292,0.1077,16739.0,16738.0,4.2757]
[1672693955770,0.1077,16739.0,16738.0,3.975]
[1672693956184,0.1077,16739.0,16738.0,4.2757]
[1672693957453,0.1077,16739.0,16738.0,3.975]
[1672693957874,0.1077,16739.0,16738.0,4.2757]
[1672693967118,0.1075,16739.0,16738.0,4.2755694]
[1672693974683,0.1075,16739.0,16738.0,3.9748694]
[1672693974895,0.1075,16739.0,16738.0,4.2755694]
[1672693975728,0.1075,16739.0,16738.0,3.9748694]
[1672693975935,0.1075,16739.0,16738.0,4.2755694]
[1672693984879,0.1075,16739.0,16738.0,3.9748694]
[1672693985085,0.1075,16739.0,16738.0,4.2755694]
[1672693987178,0.1077,16739.0,16738.0,4.0789694]
[1672693987397,0.1077,16739.0,16738.0,4.3796694]
[1672693988134,0.1077,16739.0,16738.0,4.0789694]
[1672693988342,0.1077,16739.0,16738.0,4.3796694]
[1672693988969,0.1077,16739.0,16738.0,4.0789694]
[1672693989384,0.1077,16739.0,16738.0,4.3796694]
[1672693994227,0.1077,16739.0,16738.0,4.0789694]
[1672693994442,0.1077,16739.0,16738.0,4.3796694]
[1672693996858,0.1077,16739.0,16738.0,4.0789694]
[1672693997382,0.1077,16739.0,16738.0,4.3796694]
[1672693997999,0.1077,16739.0,16738.0,4.0789694]
[1672693998216,0.1077,16739.0,16738.0,4.3796694]
[1672693999686,0.1077,16739.0,16738.0,4.0789694]
[1672693999894,0.1077,16739.0,16738.0,4.3796694]
[1672694017549,0.1077,16739.0,16738.0,4.37946971]
[1672694018822,0.107471,16739.0,16738.0,4.37946971]
[1672694019132,0.107471,16739.0,16738.0,4.07876971]
[1672694019339,0.107471,16739.0,16738.0,4.37946971]
[1672694019870,0.107471,16739.0,16738.0,4.07876971]
[1672694020072,0.107471,16739.0,16738.0,4.37946971]
[1672694020703,0.107471,16739.0,16738.0,4.07876971]
[1672694021123,0.107471,16739.0,16738.0,4.37946971]
[1672694030900,0.107471,16739.0,16738.0,4.07876971]
[1672694031104,0.107471,16739.0,16738.0,4.37946971]
[1672694037645,0.107471,16739.0,16738.0,0.4048]
[1672694038055,0.107471,16739.0,16738.0,0.6048]
[1672694038480,0.107471,16739.0,16738.0,4.3748]
[1672694041520,0.107471,16739.0,16738.0,4.0741]
[1672694041735,0.107471,16739.0,16738.0,4.3748]
[1672694047626,0.107471,16739.0,16738.0,4.0741]
[1672694047840,0.107471,16739.0,16738.0,4.3748]
[1672694048149,0.107471,16739.0,16738.0,4.0741]
[1672694048363,0.107471,16739.0,16738.0,4.3748]
[1672694048989,0.107471,16739.0,16738.0,4.0741]
[1672694049199,0.107471,16739.0,16738.0,4.3748]
[1672694050570,0.107471,16739.0,16738.0,4.0741]
[1672694050787,0.107471,16739.0,16738.0,4.3748]
[1672694051616,0.107471,16739.0,16738.0,4.0741]
[1672694051941,0.107471,16739.0,16738.0,4.3748]
[1672694059396,0.107471,16739.0,16738.0,4.0741]
[1672694059606,0.107471,16739.0,16738.0,4.3748]
[1672694064543,0.107471,16739.0,16738.0,4.2707]
[1672694071059,0.107471,16739.0,16738.0,0.3007]
[1672694071583,0.107471,16739.0,16738.0,0.5007]
[1672694072213,0.107471,16739.0,16738.0,4.2707]
[1672694073996,0.107471,16739.0,16738.0,0.5007]
[1672694077048,0.107071,16739.0,16738.0,0.5007]
[1672694080096,0.307071,16739.0,16738.0,0.5007]
[1672694081874,0.307071,16739.0,16738.0,0.2]
[1672694084825,0.307071,16739.0,16738.0,0.1992]
[1672694095339,0.11875905,16738.0,16737.0,4.0707]
[1672694095534,0.42345905,16738.0,16737.0,4.0707]
[1672694096392,0.3047,16738.0,16737.0,0.3007]
[1672694096591,0.3047,16738.0,16737.0,0.4407]
[1672694096592,0.3157,16738.0,16737.0,0.4407]
[1672694097225,0.3157,16738.0,16737.0,0.5451]
[1672694101322,0.1157,16738.0,16737.0,0.5451]
[1672694103638,0.1157,16738.0,16737.0,0.2444]
[1672694103845,0.1157,16738.0,16737.0,0.5451]
[1672694104044,0.1157,16738.0,16737.0,0.2444]
[1672694104255,0.1157,16738.0,16737.0,0.5451]
[1672694104891,0.1157,16738.0,16737.0,0.2444]
[1672694105101,0.1157,16738.0,16737.0,0.5451]
[1672694109519,0.1157,16738.0,16737.0,0.48170964]
[1672694110787,0.1157,16738.0,16737.0,0.3045]
[1672694117081,0.1157,16738.0,16737.0,0.6052]
[1672694117923,0.1157,16738.0,16737.0,0.3045]
[1672694118132,0.1157,16738.0,16737.0,0.6052]
[1672694122228,0.1157,16738.0,16737.0,0.6054]
[1672694122863,0.1157,16738.0,16737.0,0.3047]
[1672694123071,0.1157,16738.0,16737.0,0.6054]
[1672694153031,0.1157,16738.0,16737.0,0.3047]
[1672694153241,0.1157,16738.0,16737.0,0.6054]
[1672694158816,0.1157,16738.0,16737.0,0.3047]
[1672694162285,0.1157,16738.0,16737.0,0.30454381]
[1672694167025,0.1157,16738.0,16737.0,0.19984381]
[1672694167026,0.1155,16738.0,16737.0,0.19984381]
[1672694168285,0.1155,16738.0,16736.0,4.7721]
[1672694168499,0.1155,16738.0,16737.0,0.2]
[1672694174692,0.4162,16738.0,16737.0,0.2]
[1672694175845,0.1155,16738.0,16737.0,0.2]
[1672694177120,0.1157,16738.0,16737.0,0.2]
[1672694183007,0.4164,16738.0,16737.0,0.2]
[1672694194346,0.1157,16738.0,16737.0,0.2]
[1672694207913,0.1157,16738.0,16737.0,0.19987205]
[1672694210224,0.1157,16738.0,16737.0,3.96987205]
[1672694218737,0.1157,16738.0,16737.0,0.19987205]
[1672694233030,0.1157,16738.0,16737.0,0.18889975]
[1672694234712,0.1157,16738.0,16737.0,3.95889975]
[1672694238703,0.1157,16738.0,16737.0,0.18889975]
[1672694251012,0.1157,16738.0,16735.0,0.7062]
[1672694251218,0.1037,16736.0,16735.0,0.3007]
[1672694251634,0.1037,16736.0,16735.0,4.0707]
[1672694252585,0.1197,16736.0,16735.0,4.0707]
[1672694252795,0.1037,16736.0,16735.0,4.0707]
[1672694253009,0.1157,16736.0,16735.0,4.0707]
[1672694253843,0.1157,16736.0,16735.0,3.77]
[1672694257214,0.1167,16736.0,16735.0,3.77]
[1672694263415,0.1167,16736.0,16735.0,4.0707]
[1672694268152,0.1167,16736.0,16735.0,3.77]
[1672694268360,0.1167,16736.0,16735.0,4.0707]
[1672694280542,0.1167,16736.0,16735.0,3.77]
[1672694280754,0.1167,16736.0,16735.0,4.0707]
[1672694283497,0.1167,16736.0,16735.0,3.77]
[1672694283707,0.1167,16736.0,16735.0,4.0707]
[1672694285596,0.1167,16736.0,16735.0,3.77]
[1672694286016,0.1167,16736.0,16735.0,4.0707]
[1672694287070,0.1157,16736.0,16735.0,4.17458732]
[1672694287492,0.1157,16736.0,16735.0,0.4047]
[1672694288333,0.1157,16736.0,16735.0,4.1747]
[1672694293472,0.1157,16736.0,16735.0,3.874]
[1672694295989,0.1157,16736.0,16735.0,4.1747]
[1672694299570,0.1157,16736.0,16735.0,3.874]
[1672694307985,0.1157,16736.0,16735.0,4.1747]
[1672694311660,0.1157,16736.0,16735.0,3.874]
[1672694316087,0.1157,16736.0,16735.0,4.1747]
[1672694317030,0.1157,16736.0,16735.0,3.874]
[1672694317239,0.1157,16736.0,16735.0,4.1747]
[1672694318077,0.1157,16736.0,16735.0,3.874]
[1672694321342,0.1157,16736.0,16735.0,4.1747]
[1672694327121,0.012,16736.0,16735.0,4.1754]
[1672694333539,0.012,16736.0,16735.0,3.8747]
[1672694333762,0.012,16736.0,16735.0,4.1754]
[1672694335321,0.012,16736.0,16735.0,4.17523445]
[1672694337530,0.012,16736.0,16735.0,3.87453445]
[1672694337743,0.012,16736.0,16735.0,4.17523445]
[1672694339734,0.012,16736.0,16735.0,3.87453445]
[1672694340150,0.012,16736.0,16735.0,4.17523445]
[1672694345524,0.012,16736.0,16735.0,3.87453445]
[1672694345733,0.012,16736.0,16735.0,4.17523445]
[1672694349421,0.012,16736.0,16735.0,3.87453445]
[1672694349836,0.012,16736.0,16735.0,4.17523445]
[1672694354151,0.012,16736.0,16735.0,3.9148628]
[1672694354776,0.012,16736.0,16735.0,3.6141628]
[1672694356041,0.012,16736.0,16735.0,3.9148628]
[1672694356252,0.012,16736.0,16735.0,3.6141628]
[1672694356456,0.012,16736.0,16735.0,3.9148628]
[1672694356664,0.012,16736.0,16735.0,3.6141628]
[1672694356880,0.012,16736.0,16735.0,3.9148628]
[1672694357089,0.012,16736.0,16735.0,0.4054]
[1672694360042,0.012,16736.0,16735.0,0.1047]
[1672694372967,0.012,16736.0,16735.0,3.8747]
[1672694374014,0.012,16736.0,16735.0,4.1754]
[1672694377172,0.012,16736.0,16735.0,0.4054]
[1672694378119,0.012,16736.0,16735.0,0.1047]
[1672694378437,0.012,16736.0,16735.0,0.4054]
[1672694378643,0.012,16736.0,16735.0,0.1047]
[1672694378846,0.012,16736.0,16735.0,0.4054]
[1672694384634,0.012,16736.0,16735.0,0.1047]
[1672694395779,0.012,16736.0,16735.0,3.8747]
[1672694397254,0.012,16736.0,16735.0,4.1754]
[1672694406506,0.012,16736.0,16735.0,4.17520354]
[1672694406812,0.012,16736.0,16735.0,4.1754]
[1672694407023,0.1047,16740.0,16736.0,0.2]
[1672694407238,0.2,16739.0,16738.0,0.1038]
[1672694407767,0.2,16739.0,16738.0,4.0738]
[1672694407976,0.3047,16740.0,16738.0,4.0738]
[1672694408188,0.3047,16740.0,16739.0,0.2]
[1672694409131,0.3907,16740.0,16739.0,0.2]
[1672694409551,0.3907,16740.0,16739.0,0.206]
[1672694412178,0.3907,16740.0,16739.0,0.5067]
[1672694413645,0.3907,16740.0,16739.0,0.206]
[1672694422263,0.6914,16740.0,16739.0,0.206]
[1672694422691,0.6914,16740.0,16739.0,0.006]
[1672694423742,0.3907,16740.0,16739.0,0.006]
[1672694423952,0.6914,16740.0,16739.0,0.006]
[1672694427208,0.7961,16740.0,16739.0,0.006]
[1672694443791,0.4954,16740.0,16739.0,0.006]
[1672694444008,0.7961,16740.0,16739.0,0.006]
[1672694444426,0.4954,16740.0,16739.0,0.006]
[1672694444643,0.7961,16740.0,16739.0,0.006]
[1672694457790,0.7961,16740.0,16739.0,0.00580231]
[1672694459056,0.4954,16740.0,16739.0,0.00580231]
[1672694459268,0.7961,16740.0,16739.0,0.00580231]
[1672694459998,0.4954,16740.0,16739.0,0.00580231]
[1672694465045,0.7961,16740.0,16739.0,0.00580231]
[1672694470607,0.4954,16740.0,16739.0,0.00580231]
[1672694470824,0.7961,16740.0,16739.0,0.00580231]
[1672694477763,0.79589286,16740.0,16739.0,0.00580231]
[1672694479135,0.49519286,16740.0,16739.0,0.00580231]
[1672694490166,0.79589286,16740.0,16739.0,0.00580231]
[1672694495317,0.49519286,16740.0,16739.0,0.00580231]
[1672694495528,0.79589286,16740.0,16739.0,0.00580231]
[1672694498997,0.49519286,16740.0,16739.0,0.00580231]
[1672694499205,0.79589286,16740.0,16739.0,0.00580231]
[1672694503937,0.49519286,16740.0,16739.0,0.00580231]
[1672694504151,0.79589286,16740.0,16739.0,0.00580231]
[1672694505723,0.49519286,16740.0,16739.0,0.00580231]
[1672694531795,0.49519286,16740.0,16739.0,0.00571024]
[1672694536946,0.49509624,16740.0,16739.0,0.00571024]
[1672694540196,0.49509624,16740.0,16739.0,0.30641024]
[1672694543984,0.49509624,16740.0,16739.0,0.00571024]
[1672694544196,0.49509624,16740.0,16739.0,0.30641024]
[1672694548819,0.49509624,16740.0,16739.0,0.00571024]
[1672694549031,0.49509624,16740.0,16739.0,0.30641024]
[1672694551969,0.49509624,16740.0,16739.0,0.00571024]
[1672694582140,0.79579624,16740.0,16739.0,0.00571024]
[1672694584864,0.49509624,16740.0,16739.0,0.00571024]
[1672694585080,0.49509624,16740.0,16739.0,0.0055187]
[1672694588341,0.39039624,16740.0,16739.0,0.0055187]
[1672694597305,0.49509624,16740.0,16739.0,0.0055187]
[1672694604202,0.1907,16740.0,16739.0,0.1099187]
[1672694610830,0.1907,16740.0,16739.0,0.4106187]
[1672694612710,0.1907,16740.0,16739.0,0.1099187]
[1672694613032,0.1907,16740.0,16739.0,0.4106187]
[1672694617127,0.086,16740.0,16739.0,0.4106187]
[1672694619763,0.086,16740.0,16739.0,0.1099187]
[1672694619973,0.086,16740.0,16739.0,0.4106187]
[1672694620926,0.086,16740.0,16739.0,0.1099187]
[1672694621140,0.086,16740.0,16739.0,0.4106187]
[1672694624076,0.086,16740.0,16739.0,0.1099187]
[1672694624285,0.086,16740.0,16739.0,0.4106187]
[1672694628914,0.086,16740.0,16739.0,0.1099187]
[1672694629337,0.086,16740.0,16739.0,0.4106187]
[1672694633013,0.086,16740.0,16739.0,0.1099187]
[1672694633222,0.086,16740.0,16739.0,0.4106187]
[1672694634056,0.086,16740.0,16739.0,0.1099187]
[1672694634268,0.086,16740.0,16739.0,0.10971819]
[1672694634481,0.086,16740.0,16739.0,0.41041819]
[1672694639848,0.08,16740.0,16739.0,0.4111]
[1672694640271,0.3047,16741.0,16739.0,0.4051]
[1672694640483,0.08,16740.0,16739.0,0.4111]
[1672694642372,0.08,16740.0,16739.0,0.1104]
[1672694642586,0.08,16740.0,16739.0,0.4111]
[1672694647116,0.1843,16740.0,16739.0,0.3067]
[1672694648577,0.1843,16740.0,16739.0,0.006]
[1672694648786,0.1843,16740.0,16739.0,0.3067]
[1672694652042,0.1843,16740.0,16739.0,0.006]
[1672694652359,0.1843,16740.0,16739.0,0.3067]
[1672694653407,0.1843,16740.0,16739.0,0.006]
[1672694653618,0.1843,16740.0,16739.0,0.3067]
[1672694655311,0.1843,16740.0,16739.0,0.006]
[1672694655515,0.1843,16740.0,16739.0,0.3067]
[1672694657001,0.1843,16740.0,16739.0,0.006]
[1672694657640,0.1843,16740.0,16739.0,0.3067]
[1672694658042,0.1843,16740.0,16739.0,0.006]
[1672694658269,0.1843,16740.0,16739.0,0.3067]
[1672694663729,0.1843,16740.0,16739.0,0.006]
[1672694664564,0.1843,16740.0,16739.0,0.3067]
[1672694666554,0.1843,16740.0,16739.0,0.006]
[1672694666763,0.1843,16740.0,16739.0,0.3067]
[1672694667191,0.1847,16740.0,16739.0,0.3067]
[1672694675809,0.1847,16740.0,16739.0,0.006]
[1672694686102,0.1847,16740.0,16739.0,0.00584176]
[1672694695982,0.3934,16740.0,16739.0,0.00584176]
[1672694696203,1.6229,16740.0,16735.0,0.3007]
[1672694696397,0.3007,16738.0,16736.0,3.77]
[1672694697142,0.5132,16737.0,16736.0,3.77]
[1672694698189,0.5132,16737.0,16735.0,0.3037]
[1672694698508,0.4094,16736.0,16735.0,0.3037]
[1672694698717,0.4094,16736.0,16734.0,3.97]
[1672694698928,0.1047,16735.0,16734.0,3.77]
[1672694699765,0.1047,16735.0,16734.0,3.773]
[1672694700184,0.1227,16735.0,16734.0,3.773]
[1672694702188,0.1227,16735.0,16734.0,4.0737]
[1672694703652,0.1227,16735.0,16734.0,3.773]
[1672694703964,0.1227,16735.0,16734.0,4.0737]
[1672694709752,0.1227,16735.0,16734.0,4.6711]
[1672694712901,0.018,16735.0,16734.0,4.7751]
[1672694713526,0.1047,16738.0,16734.0,4.8798]
[1672694713748,0.1047,16738.0,16737.0,0.3007]
[1672694714477,0.1047,16738.0,16737.0,0.5007]
[1672694715113,0.1737,16738.0,16737.0,0.5007]
[1672694715742,0.1737,16738.0,16737.0,0.5077]
[1672694716590,0.1737,16738.0,16737.0,0.207]
[1672694722048,0.17356518,16738.0,16737.0,0.207]
[1672694723736,0.17266518,16738.0,16737.0,0.207]
[1672694735333,0.17266518,16738.0,16737.0,0.5077]
[1672694737112,0.17296518,16738.0,16737.0,0.5077]
[1672694746908,0.17296518,16738.0,16737.0,0.207]
[1672694757207,0.17256518,16738.0,16737.0,0.207]
[1672694765090,0.17256518,16738.0,16737.0,0.5077]
[1672694767082,0.17356518,16738.0,16737.0,0.6115]
[1672694771072,0.17356518,16738.0,16737.0,0.3108]
[1672694771290,0.17356518,16738.0,16737.0,0.6115]
[1672694774545,0.17356518,16738.0,16737.0,0.61134554]
[1672694776535,0.17356518,16738.0,16737.0,1.20874554]
[1672694777167,0.06886518,16738.0,16737.0,1.20964554]
[1672694779055,0.06886518,16738.0,16737.0,0.90894554]
[1672694779371,0.06886518,16738.0,16737.0,1.20964554]
[1672694787053,0.06886518,16738.0,16737.0,1.20934554]
[1672694792732,0.06886518,16738.0,16737.0,0.90864554]
[1672694792931,0.06886518,16738.0,16737.0,1.20934554]
[1672694801761,0.06886518,16738.0,16737.0,0.90864554]
[1672694801972,0.06886518,16738.0,16737.0,1.20934554]
[1672694802926,0.06886518,16738.0,16737.0,0.90864554]
[1672694803131,0.06886518,16738.0,16737.0,1.20934554]
[1672694811648,0.06886518,16738.0,16737.0,0.90864554]
[1672694811967,0.06886518,16738.0,16737.0,1.20934554]
[1672694812912,0.06886518,16738.0,16737.0,0.90864554]
[1672694813115,0.06886518,16738.0,16737.0,1.20934554]
[1672694815750,0.06886518,16738.0,16737.0,0.90864554]
[1672694815960,0.06886518,16738.0,16737.0,1.20934554]
[1672694816695,0.06886518,16738.0,16737.0,0.90864554]
[1672694817009,0.06886518,16738.0,16737.0,1.20934554]
[1672694819425,0.17296518,16738.0,16737.0,1.20964554]
[1672694824049,0.17296518,16738.0,16737.0,1.20953211]
[1672694825102,0.17296518,16738.0,16737.0,0.90883211]
[1672694827094,0.1671,16738.0,16737.0,0.90853211]
[1672694827407,0.1041,16738.0,16737.0,0.90153211]
[1672694827624,0.1671,16738.0,16737.0,0.90853211]
[1672694847183,0.1677,16738.0,16737.0,0.80413211]
[1672694847814,0.1677,16738.0,16737.0,0.6044]
[1672694853060,0.1677,16738.0,16737.0,0.007]
[1672694853591,0.2724,16738.0,16737.0,0.007]
[1672694853806,0.5724,16738.0,16737.0,0.007]
[1672694854750,0.8731,16738.0,16737.0,0.007]
[1672694858016,0.5724,16738.0,16737.0,0.007]
[1672694858329,0.8731,16738.0,16737.0,0.007]
[1672694865687,0.5724,16738.0,16737.0,0.007]
[1672694865897,0.8731,16738.0,16737.0,0.007]
[1672694866729,0.5731,16738.0,16737.0,0.007]
[1672694872837,0.2724,16738.0,16737.0,0.007]
[1672694873050,0.5731,16738.0,16737.0,0.007]
[1672694874932,0.4684,16738.0,16737.0,0.007]
[1672694876095,0.4684,16738.0,16737.0,0.00690051]
[1672694885030,0.1677,16738.0,16737.0,0.00690051]
[1672694886281,0.1677,16738.0,16737.0,0.20690051]
[1672694909949,0.1677,16738.0,16737.0,0.50760051]
[1672694910674,0.1677,16738.0,16737.0,0.20690051]
[1672694910879,0.1677,16738.0,16737.0,0.50760051]
[1672694911301,0.1677,16738.0,16737.0,0.20690051]
[1672694916771,0.1677,16738.0,16737.0,0.50760051]
[1672694922454,0.1677,16738.0,16737.0,4.27760051]
[1672694922983,0.1677,16738.0,16737.0,3.97690051]
[1672694923187,0.1677,16738.0,16737.0,4.27760051]
[1672694925185,0.1677,16738.0,16737.0,4.27752949]
[1672694925818,0.1677,16738.0,16737.0,3.97682949]
[1672694926138,0.1677,16738.0,16737.0,4.27752949]
[1672694932020,0.1677,16738.0,16737.0,0.50752949]
[1672694933080,0.1677,16738.0,16737.0,0.20682949]
[1672694947911,0.1677,16738.0,16737.0,3.97682949]
[1672694959362,0.1677,16738.0,16737.0,4.27752949]
[1672694963560,0.1677,16738.0,16737.0,3.97682949]
[1672694964193,0.1677,16738.0,16737.0,4.27752949]
[1672694967132,0.063,16738.0,16737.0,4.38212949]
[1672694973129,0.063,16738.0,16737.0,4.38189822]
[1672694977227,0.1677,16738.0,16737.0,3.97659822]
[1672694999297,0.1677,16738.0,16737.0,4.27729822]
[1672695004659,0.1677,16738.0,16737.0,3.97659822]
[1672695004860,0.1677,16738.0,16737.0,4.27729822]
[1672695006439,0.1677,16738.0,16737.0,3.97659822]
[1672695006651,0.1677,16738.0,16737.0,4.27729822]
[1672695008335,0.1677,16738.0,16737.0,3.97659822]
[1672695017993,0.1677,16738.0,16737.0,3.97651676]
[1672695023766,0.1677,16738.0,16737.0,4.27721676]
[1672695024198,0.1677,16738.0,16737.0,3.97651676]
[1672695024417,0.1677,16738.0,16737.0,4.27721676]
[1672695024613,0.1677,16738.0,16737.0,3.97651676]
[1672695024934,0.1677,16738.0,16737.0,4.27721676]
[1672695026412,0.1677,16738.0,16737.0,3.97651676]
[1672695026721,0.1677,16738.0,16737.0,4.27721676]
[1672695031354,0.1677,16738.0,16737.0,3.97651676]
[1672695037973,0.1677,16738.0,16737.0,4.27721676]
[1672695040274,0.1677,16738.0,16737.0,3.97651676]
[1672695040596,0.1677,16738.0,16737.0,4.27721676]
[1672695041437,0.1677,16738.0,16737.0,3.97651676]
[1672695041757,0.1677,16738.0,16737.0,4.27721676]
[1672695041963,0.1677,16738.0,16737.0,3.97651676]
[1672695042183,0.1677,16738.0,16737.0,4.27721676]
[1672695047216,0.063,16738.0,16737.0,4.38101676]
[1672695047947,0.063,16738.0,16737.0,4.08031676]
[1672695048159,0.063,16738.0,16737.0,4.38101676]
[1672695056568,0.063,16738.0,16737.0,4.08031676]
[1672695056983,0.063,16738.0,16737.0,4.38101676]
[1672695058143,0.063,16738.0,16737.0,4.08031676]
[1672695058361,0.063,16738.0,16737.0,4.38101676]
[1672695066761,0.063,16738.0,16737.0,4.38090356]
[1672695075172,0.063,16738.0,16737.0,4.08020356]
[1672695075382,0.063,16738.0,16737.0,4.38090356]
[1672695075588,0.063,16738.0,16737.0,4.08020356]
[1672695075800,0.063,16738.0,16737.0,4.38090356]
[1672695077272,0.1673,16738.0,16737.0,4.27710356]
[1672695077481,0.1673,16738.0,16737.0,3.97640356]
[1672695077693,0.1673,16738.0,16737.0,4.27710356]
[1672695084729,0.1673,16738.0,16737.0,3.97640356]
[1672695085255,0.1673,16738.0,16737.0,4.27710356]
[1672695090830,0.1673,16738.0,16737.0,3.97640356]
[1672695091250,0.1673,16738.0,16737.0,4.27710356]
[1672695093883,0.1673,16738.0,16737.0,3.97640356]
[1672695094093,0.1673,16738.0,16737.0,4.27710356]
[1672695098823,0.1673,16738.0,16737.0,3.97640356]
[1672695099034,0.1673,16738.0,16737.0,4.27710356]
[1672695102726,0.1673,16738.0,16737.0,3.97640356]
[1672695102935,0.1673,16738.0,16737.0,4.27710356]
[1672695103140,0.1673,16738.0,16737.0,3.97640356]
[1672695103363,0.1673,16738.0,16737.0,4.27710356]
[1672695110823,0.1673,16738.0,16737.0,3.97640356]
[1672695116717,0.1673,16738.0,16737.0,3.9763007]
[1672695126902,0.1673,16738.0,16737.0,4.2770007]
[1672695127113,0.1677,16738.0,16737.0,4.3817007]
[1672695136991,0.1677,16738.0,16737.0,4.0810007]
[1672695137209,0.063,16738.0,16737.0,4.3808007]
[1672695139829,0.063,16738.0,16737.0,4.0801007]
[1672695140034,0.063,16738.0,16737.0,4.3808007]
[1672695147714,0.063,16738.0,16737.0,4.0801007]
[1672695147926,0.063,16738.0,16737.0,4.3808007]
[1672695151920,0.063,16738.0,16737.0,4.0801007]
[1672695152126,0.063,16738.0,16737.0,4.3808007]
[1672695161055,0.063,16738.0,16737.0,4.0801007]
[1672695161265,0.063,16738.0,16737.0,4.3808007]
[1672695163473,0.063,16738.0,16737.0,4.0801007]
[1672695163685,0.063,16738.0,16737.0,4.3808007]
[1672695166626,0.063,16738.0,16737.0,4.38073986]
[1672695168520,0.06293053,16738.0,16737.0,4.38073986]
[1672695175665,0.06293053,16738.0,16737.0,4.97813986]
[1672695176511,0.06293053,16738.0,16737.0,4.67743986]
[1672695176720,0.06293053,16738.0,16737.0,4.97813986]
[1672695180080,0.06293053,16738.0,16737.0,4.67743986]
[1672695180289,0.06293053,16738.0,16737.0,4.97813986]
[1672695184704,0.06293053,16738.0,16737.0,4.67743986]
[1672695184909,0.06293053,16738.0,16737.0,4.97813986]
[1672695187122,0.06293053,16738.0,16737.0,4.97833986]
[1672695204907,0.06293053,16738.0,16737.0,4.67763986]
[1672695205227,0.06293053,16738.0,16737.0,4.97833986]
[1672695207006,0.06293053,16738.0,16737.0,4.67763986]
[1672695207219,0.06293053,16738.0,16737.0,4.97833986]
[1672695212260,0.06293053,16738.0,16737.0,4.67763986]
[1672695212577,0.06293053,16738.0,16737.0,4.97833986]
[1672695214459,0.06293053,16738.0,16737.0,4.9782404]
[1672695220986,0.06293053,16738.0,16737.0,4.6775404]
[1672695221510,0.06293053,16738.0,16737.0,4.9782404]
[1672695222567,0.06284803,16738.0,16737.0,4.9782404]
[1672695228444,0.06284803,16738.0,16737.0,4.6775404]
[1672695228657,0.06284803,16738.0,16737.0,4.9782404]
[1672695230981,0.06284803,16738.0,16737.0,4.6775404]
[1672695231175,0.06284803,16738.0,16737.0,4.9782404]
[1672695232116,0.06284803,16738.0,16737.0,4.6775404]
[1672695232330,0.06284803,16738.0,16737.0,4.9782404]
[1672695245676,0.06284803,16738.0,16737.0,4.6775404]
[1672695245885,0.06284803,16738.0,16737.0,4.9782404]
[1672695247149,0.06284803,16738.0,16737.0,4.9786404]
[1672695249999,0.06284803,16738.0,16737.0,4.6779404]
[1672695250199,0.06284803,16738.0,16737.0,4.9786404]
[1672695250617,0.06284803,16738.0,16737.0,4.6779404]
[1672695250835,0.06284803,16738.0,16737.0,4.9786404]
[1672695251568,0.06284803,16738.0,16737.0,4.6779404]
[1672695251990,0.06284803,16738.0,16737.0,4.9786404]
[1672695267125,0.16754803,16738.0,16737.0,4.9789404]
[1672695273636,0.16754803,16738.0,16737.0,4.97879008]
[1672695277117,0.06284803,16738.0,16737.0,4.97809008]
[1672695277964,0.06284803,16738.0,16737.0,4.67739008]
[1672695278273,0.06284803,16738.0,16737.0,4.97809008]
[1672695289516,0.06284803,16738.0,16737.0,4.67739008]
[1672695289734,0.06284803,16738.0,16737.0,4.97809008]
[1672695291202,0.06284803,16738.0,16737.0,4.67739008]
[1672695291404,0.06284803,16738.0,16737.0,4.97809008]
[1672695291827,0.06284803,16738.0,16737.0,4.67739008]
[1672695292143,0.06284803,16738.0,16737.0,4.97809008]
[1672695297085,0.06284803,16738.0,16737.0,4.97859008]
[1672695301925,0.06284803,16738.0,16737.0,4.67789008]
[1672695302549,0.06284803,16738.0,16737.0,4.97859008]
[1672695305377,0.06284803,16738.0,16737.0,4.67789008]
[1672695305591,0.06284803,16738.0,16737.0,4.97859008]
[1672695306118,0.06284803,16738.0,16737.0,4.67789008]
[1672695306540,0.06284803,16738.0,16737.0,4.97859008]
[1672695309058,0.06284803,16738.0,16737.0,4.67789008]
[1672695309270,0.06284803,16738.0,16737.0,4.97859008]
[1672695313055,0.1047,16742.0,16738.0,0.2909]
[1672695313366,0.1047,16740.0,16739.0,0.5974]
[1672695313586,0.1047,16740.0,16738.0,0.5007]
[1672695314108,0.2,16739.0,16738.0,0.5007]